bitfinex-derivatives/quotes_ETHF0:USTF0_20250322
["timestamp","ask_amount","ask_price","bid_price","bid_amount"]
[1742601600947,1.2865,1966.7,1966.6,1.2834]
[1742601604238,2.30381,1966.7,1966.6,2.30077]
[1742601606137,9.7545,1966.7,1965.7,3.21541673]
[1742601606344,1.01765,1966.2,1966.1,1.01758]
[1742601606545,5.08748,1966.4,1966.2,1.01752]
[1742601606552,1.01754,1966.3,1966.2,1.01752]
[1742601606745,3.73304,1966.3,1966.2,2.30392]
[1742601607543,1.01762,1966.2,1966.1,1.01759]
[1742601607745,2.35892,1966.2,1966.1,1.01759]
[1742601609651,2.35892,1966.2,1965.9,9.01985]
[1742601609652,2.35892,1966.2,1965.9,3.226]
[1742601609849,5.752,1966.0,1965.7,0.00761673]
[1742601610048,1.01778,1965.8,1965.7,0.00761673]
[1742601610243,1.01778,1965.8,1965.7,1.02544673]
[1742601610450,2.33698,1965.8,1965.7,1.02544673]
[1742601612154,2.33698,1965.8,1965.7,0.00761673]
[1742601612349,2.33698,1965.8,1965.7,1.02544673]
[1742601613447,1.3192,1965.8,1965.7,1.02544673]
[1742601613650,2.33698,1965.8,1965.7,1.02544673]
[1742601613851,2.33698,1965.8,1965.7,2.36064673]
[1742601614648,2.33698,1965.8,1965.7,1.34281673]
[1742601614849,2.33698,1965.8,1965.7,2.36064673]
[1742601615756,2.33698,1965.8,1965.7,1.34281673]
[1742601616055,2.33698,1965.8,1965.7,2.36064673]
[1742601618248,2.33698,1965.8,1965.7,1.34281673]
[1742601618557,2.33698,1965.8,1965.7,0.00761673]
[1742601618748,5.54478,1965.8,1965.7,0.00761673]
[1742601619062,8.77778,1965.8,1965.7,0.00761673]
[1742601619358,1.01808,1965.3,1965.2,1.01803]
[1742601619542,1.01808,1965.3,1965.2,2.34203]
[1742601620255,2.30488,1965.3,1965.2,2.34203]
[1742601620953,0.69741673,1965.4,1965.3,1.01804]
[1742601621256,0.69741673,1965.4,1965.3,2.39854]
[1742601621257,0.00761673,1965.4,1965.3,2.39854]
[1742601625259,0.00761673,1965.4,1965.3,8.27054]
[1742601625659,0.00761673,1965.4,1965.3,10.77054]
[1742601625859,1.68323,1965.9,1965.8,1.01778]
[1742601626155,2.0218,1965.9,1965.8,1.01778]
[1742601626357,4.22552,1966.0,1965.9,1.01773]
[1742601626657,5.58182,1966.0,1965.9,1.01773]
[1742601626853,4.5641,1966.0,1965.9,1.01773]
[1742601627054,5.58178,1966.0,1965.9,1.01773]
[1742601627254,5.58178,1966.0,1965.9,2.39733]
[1742601628359,2.37398,1966.0,1965.9,2.39733]
[1742601628748,1.3563,1966.0,1965.9,2.39733]
[1742601628953,2.37398,1966.0,1965.9,2.39733]
[1742601629556,1.3563,1966.0,1965.9,2.39733]
[1742601629756,2.37398,1966.0,1965.9,2.39733]
[1742601630153,1.3563,1966.0,1965.9,2.39733]
[1742601630966,2.37398,1966.0,1965.9,2.39733]
[1742601631466,1.3563,1966.0,1965.9,2.39733]
[1742601631667,2.37398,1966.0,1965.9,2.39733]
[1742601631968,1.3563,1966.0,1965.9,2.39733]
[1742601632161,0.00761673,1966.1,1966.0,1.01768]
[1742601632462,0.00761673,1966.1,1966.0,1.71278]
[1742601632666,0.00761673,1966.1,1966.0,4.95078]
[1742601632864,0.00761673,1966.1,1966.0,6.26838]
[1742601633864,1.35911673,1966.1,1966.0,6.26838]
[1742601641070,0.00761673,1966.1,1966.0,6.26838]
[1742601658578,0.00761673,1966.1,1966.0,9.47618]
[1742601659581,0.00761673,1966.1,1966.0,10.12130944]
[1742601662590,1.32521673,1966.1,1966.0,10.12130944]
[1742601669491,0.00761673,1966.1,1966.0,10.12130944]
[1742601670596,6.73e-06,1966.1,1966.0,18.49330944]
[1742601670798,0.695,1966.5,1966.4,1.01747]
[1742601671000,0.695,1966.5,1966.4,7.44727]
[1742601671195,0.695,1966.5,1966.4,10.13509944]
[1742601671398,0.6781,1966.6,1966.5,1.01742]
[1742601671697,0.6781,1966.6,1966.5,2.41402]
[1742601672090,0.6781,1966.6,1966.5,3.05924895]
[1742601672291,0.00761673,1966.7,1966.6,1.01737]
[1742601672495,6.73e-06,1966.7,1966.6,8.82637]
[1742601672698,6.73e-06,1966.7,1966.6,17.87547]
[1742601672902,6.73e-06,1966.7,1966.6,18.27418213]
[1742601673091,6.73e-06,1966.7,1966.6,18.9187082]
[1742601673488,1.3707,1967.3,1967.2,1.01705]
[1742601673694,1.3707,1967.3,1967.2,4.24705]
[1742601674095,1.3707,1967.3,1967.2,5.62125]
[1742601676391,1.41541673,1967.4,1967.3,1.017]
[1742601676591,0.00761673,1967.4,1967.3,5.6029]
[1742601678094,6.73e-06,1967.4,1967.3,5.6029]
[1742601678298,6.73e-06,1967.4,1967.3,13.9749]
[1742601678506,6.73e-06,1967.4,1967.3,11.4749]
[1742601679004,6.73e-06,1967.4,1967.3,14.7079]
[1742601679196,0.67480673,1967.4,1967.3,14.7079]
[1742601682206,6.73e-06,1967.4,1967.3,14.7079]
[1742601687802,1.2963,1967.9,1967.8,1.01674]
[1742601688109,1.2963,1967.9,1967.8,4.24774]
[1742601688508,1.2963,1967.9,1967.8,5.59004]
[1742601689407,2.6793,1967.9,1967.8,5.59004]
[1742601690412,0.0050778,1968.0,1967.9,1.01669]
[1742601690608,0.0050778,1968.0,1967.9,5.56679]
[1742601694009,0.0050778,1968.0,1967.9,5.97598989]
[1742601694614,0.0050778,1968.0,1967.9,11.84798989]
[1742601694909,7.8e-06,1968.0,1967.9,11.84798989]
[1742601695606,7.8e-06,1968.0,1967.9,14.34798989]
[1742601699809,7.8e-06,1968.0,1967.9,11.84798989]
[1742601700809,7.8e-06,1968.0,1967.9,14.34798989]
[1742601701005,7.8e-06,1968.0,1967.9,14.98871916]
[1742601703910,7.8e-06,1968.0,1967.9,12.48871916]
[1742601704314,7.8e-06,1968.0,1967.9,14.98871916]
[1742601712321,7.8e-06,1968.0,1967.9,15.71571916]
[1742601719629,7.8e-06,1968.0,1967.9,9.84371916]
[1742601720626,0.6736,1968.2,1967.9,11.36876916]
[1742601720827,0.6736,1968.2,1968.1,4.22439]
[1742601721130,0.6736,1968.2,1968.1,7.44939]
[1742601721432,0.6736,1968.2,1968.1,8.85519]
[1742601721620,0.6736,1968.2,1968.1,9.49591927]
[1742601723826,2.0793,1968.2,1968.1,9.49591927]
[1742601724720,2.0793,1968.2,1968.1,4.86511927]
[1742601725031,2.0793,1968.2,1967.9,3.226]
[1742601725032,4.5793,1968.2,1967.9,3.226]
[1742601725232,1.01664,1968.0,1967.9,0.1151]
[1742601725529,1.01664,1968.0,1967.9,1.4801]
[1742601725936,1.01674,1967.8,1967.7,0.00761673]
[1742601726128,4.22453,1967.9,1967.7,3.23661673]
[1742601726326,4.22453,1967.9,1967.7,4.25338673]
[1742601726827,1.01674,1967.8,1967.7,4.25338673]
[1742601727232,3.2078,1967.9,1967.7,4.25338673]
[1742601727432,3.2078,1967.9,1967.8,1.01674]
[1742601727725,4.22454,1967.9,1967.7,4.25337673]
[1742601728132,4.22454,1967.9,1967.7,3.23661673]
[1742601728435,4.22454,1967.9,1967.7,4.25337673]
[1742601728844,1.01674,1967.8,1967.7,4.25337673]
[1742601729137,3.2078,1967.9,1967.7,4.25341673]
[1742601729831,1.01674,1967.8,1967.7,3.23661673]
[1742601730333,1.01674,1967.8,1967.7,4.25341673]
[1742601730532,1.01674,1967.8,1967.7,3.23661673]
[1742601731227,1.01674,1967.8,1967.7,4.25341673]
[1742601731841,3.2078,1967.9,1967.8,1.01674]
[1742601731842,4.22452,1967.9,1967.8,1.01674]
[1742601732139,4.22452,1967.9,1967.7,4.25337673]
[1742601732140,1.01674,1967.8,1967.7,4.25337673]
[1742601734631,1.01674,1967.8,1967.7,3.23661673]
[1742601734832,1.01674,1967.8,1967.7,4.25341673]
[1742601744932,1.01674,1967.8,1967.7,4.89441673]
[1742601750744,3.51674,1967.8,1967.7,0.00761673]
[1742601758844,1.01674,1967.8,1967.7,0.00761673]
[1742601759242,1.01674,1967.8,1967.7,1.36111673]
[1742601759441,1.01674,1967.8,1967.7,2.74531673]
[1742601761735,3.51674,1967.8,1967.7,2.74531673]
[1742601761946,3.51674,1967.8,1967.7,1.39181673]
[1742601766751,6.72454,1967.8,1967.7,1.39181673]
[1742601769753,4.22454,1967.8,1967.7,1.39181673]
[1742601769953,6.72454,1967.8,1967.7,1.39181673]
[1742601771257,4.22454,1967.8,1967.7,1.39181673]
[1742601774259,7.65618267,1967.8,1967.7,0.33123673]
[1742601774552,1.01711,1967.1,1966.7,6.15413334]
[1742601774758,2.542,1967.7,1966.9,1.69618]
[1742601774759,1.01723,1967.0,1966.9,1.69618]
[1742601775353,4.22503,1967.0,1966.9,1.69618]
[1742601776657,4.22503,1967.0,1966.9,1.69621]
[1742601777061,4.22503,1967.0,1966.9,0.679]
[1742601777454,4.22503,1967.0,1966.9,2.049]
[1742601778262,4.22503,1967.0,1966.9,3.06621]
[1742601778465,4.22503,1967.0,1966.9,2.049]
[1742601780061,4.22503,1967.0,1966.9,3.06621]
[1742601780261,3.2078,1967.0,1966.9,3.06621]
[1742601780463,2.1398,1967.0,1966.9,3.06621]
[1742601781167,3.15696,1967.0,1966.9,3.06621]
[1742601781358,2.1398,1967.0,1966.9,3.06621]
[1742601781659,3.15696,1967.0,1966.9,3.06621]
[1742601782261,0.00761673,1967.1,1966.9,3.06621]
[1742601782459,4.23252673,1967.1,1967.0,2.43106]
[1742601783267,0.00761673,1967.1,1967.0,2.43106]
[1742601786369,1.02472673,1967.1,1967.0,2.43106]
[1742601786873,0.00761673,1967.1,1967.0,2.43106]
[1742601789367,0.00761673,1967.1,1967.0,5.64906]
[1742601791571,0.00761673,1967.1,1967.0,2.43106]
[1742601791769,4.23252673,1967.1,1967.0,2.43106]
[1742601792373,5.28672673,1967.1,1967.0,2.43106]
[1742601794177,5.28672673,1967.1,1967.0,1.4139]
[1742601800881,5.28672673,1967.1,1967.0,1.39608114]
[1742601802978,5.28672673,1967.1,1967.0,2.41324114]
[1742601803484,5.28672673,1967.1,1967.0,1.39608114]
[1742601805176,5.28672673,1967.1,1967.0,2.41324114]
[1742601806184,5.28672673,1967.1,1967.0,1.39608114]
[1742601813083,1.01721,1966.9,1966.8,0.00761673]
[1742601813387,7.44101,1966.9,1966.8,0.00761673]
[1742601813588,8.14301,1966.9,1966.8,0.00761673]
[1742601814383,7.44101,1966.9,1966.8,0.00761673]
[1742601814687,7.44101,1966.9,1966.8,1.71397673]
[1742601814891,7.44101,1966.9,1966.8,2.36767673]
[1742601821083,7.44101,1966.9,1966.8,1.35041673]
[1742601821585,7.44101,1966.9,1966.8,2.67251673]
[1742601822283,8.51311,1966.9,1966.8,2.67251673]
[1742601822886,7.44101,1966.9,1966.8,2.67251673]
[1742601823687,7.44101,1966.9,1966.8,3.68977673]
[1742601826985,3.21541673,1967.1,1967.0,1.01716]
[1742601827188,7.44653673,1967.1,1967.0,1.01716]
[1742601827489,7.44653673,1967.1,1967.0,2.39526]
[1742601827892,7.44653673,1967.1,1967.0,1.3781]
[1742601828190,8.37832006,1967.1,1967.0,1.3781]
[1742601828396,8.37832006,1967.1,1967.0,2.39526]
[1742601828990,7.44653673,1967.1,1967.0,2.39526]
[1742601829291,7.44653673,1967.1,1967.0,1.3781]
[1742601829692,8.37830042,1967.1,1967.0,1.3781]
[1742601829884,7.44653673,1967.1,1967.0,1.3781]
[1742601830288,7.44653673,1967.1,1967.0,2.39526]
[1742601830790,4.23253673,1967.1,1967.0,2.39526]
[1742601838005,5.30413673,1967.1,1967.0,1.3781]
[1742601838188,6.23590767,1967.1,1967.0,1.3781]
[1742601838885,7.16978112,1967.1,1967.0,1.3781]
[1742601840692,4.14929018,1967.1,1967.0,2.39526]
[1742601840892,0.94149018,1967.1,1967.0,2.39526]
[1742601841292,0.00761673,1967.1,1967.0,2.39526]
[1742601841494,3.2078,1967.3,1967.2,1.01705]
[1742601841990,3.2078,1967.3,1967.2,2.31205]
[1742601842492,1.01697,1967.4,1967.3,1.017]
[1742601842692,1.01697,1967.4,1967.3,2.312]
[1742601843192,7.44174,1967.5,1967.3,1.295]
[1742601843394,3.2078,1967.5,1967.4,3.07165]
[1742601843600,4.2247,1967.5,1967.4,3.07165]
[1742601844800,4.2247,1967.5,1967.4,3.72725]
[1742601845595,3.2078,1967.5,1967.4,3.72725]
[1742601845804,4.2247,1967.5,1967.4,3.72725]
[1742601846301,3.2078,1967.5,1967.4,3.72725]
[1742601847402,4.2247,1967.5,1967.4,3.72725]
[1742601848403,5.2957,1967.5,1967.4,3.72725]
[1742601848598,5.2957,1967.5,1967.4,1.3548]
[1742601848900,5.9465,1967.5,1967.4,1.3548]
[1742601849103,1.01705,1967.2,1967.1,2.35329]
[1742601849297,4.22485,1967.2,1967.1,2.35329]
[1742601849697,4.22485,1967.2,1967.1,1.3362]
[1742601849895,1.01721,1967.0,1966.8,5.77273673]
[1742601850099,4.22501,1967.0,1966.9,2.34948]
[1742601850600,4.22501,1967.0,1966.9,2.7455]
[1742601850803,4.22501,1967.0,1966.9,3.76271]
[1742601851703,4.22501,1967.0,1966.9,2.7455]
[1742601852004,5.29601,1967.0,1966.9,3.76271]
[1742601852501,5.29601,1967.0,1966.9,2.7455]
[1742601853089,5.29601,1967.0,1966.9,3.76271]
[1742601854391,4.22501,1967.0,1966.9,3.76271]
[1742601857308,1.01715,1967.1,1967.0,1.01711]
[1742601857604,3.2078,1967.2,1967.1,1.01711]
[1742601857799,4.22474,1967.5,1967.4,1.01695]
[1742601858907,4.22474,1967.5,1967.4,2.38205]
[1742601861202,3.2078,1967.5,1967.4,2.38205]
[1742601861706,4.2247,1967.5,1967.4,2.38205]
[1742601864708,1.0169,1967.5,1967.4,2.38205]
[1742601864900,4.2247,1967.5,1967.4,2.38205]
[1742601867210,3.2078,1967.5,1967.4,2.38205]
[1742601870309,1.01688,1967.6,1967.5,1.0169]
[1742601870510,1.01688,1967.6,1967.5,2.3854]
[1742601870712,4.22468,1967.6,1967.5,2.3854]
[1742601870915,3.2078,1967.6,1967.5,2.3854]
[1742601871807,4.22465,1967.6,1967.5,2.3854]
[1742601873511,3.2078,1967.6,1967.5,2.3854]
[1742601878917,1.01683,1967.7,1967.5,2.3854]
[1742601878918,4.22464,1967.7,1967.6,1.0168]
[1742601879119,3.2078,1967.7,1967.6,3.057]
[1742601879625,4.2246,1967.7,1967.6,3.057]
[1742601880619,3.2078,1967.7,1967.6,3.057]
[1742601883024,3.2078,1967.7,1967.6,3.7392]
[1742601884914,7.97021369,1967.9,1967.8,1.01674]
[1742601884915,11.17801369,1967.9,1967.8,1.01674]
[1742601885115,6.89921369,1967.9,1967.8,1.01674]
[1742601885314,6.89921369,1967.9,1967.8,5.60144]
[1742601885723,1.01656,1968.2,1968.1,1.01659]
[1742601886119,5.97933,1968.3,1968.2,1.01654]
[1742601886320,4.22433,1968.3,1968.2,1.67514]
[1742601886514,3.2078,1968.3,1968.2,2.98204]
[1742601887715,4.22429,1968.3,1968.2,2.98204]
[1742601888629,4.22429,1968.3,1968.2,1.3069]
[1742601888826,1.01659,1968.1,1968.0,1.02422673]
[1742601889028,4.22439,1968.1,1968.0,2.38342673]
[1742601889229,5.95569,1968.1,1968.0,2.38342673]
[1742601890027,5.95569,1968.1,1968.0,1.36681673]
[1742601895327,9.17969,1968.1,1968.0,1.36681673]
[1742601897432,9.17969,1968.1,1968.0,2.38345673]
[1742601897634,9.17969,1968.1,1968.0,1.36681673]
[1742601898035,9.17969,1968.1,1968.0,2.38345673]
[1742601898230,9.17969,1968.1,1968.0,1.36681673]
[1742601899036,9.17969,1968.1,1968.0,2.38345673]
[1742601899236,9.17969,1968.1,1968.0,1.36681673]
[1742601901135,9.17969,1968.1,1968.0,2.38345673]
[1742601901338,9.17969,1968.1,1968.0,1.36681673]
[1742601903525,9.17969,1968.1,1968.0,2.38345673]
[1742601903836,9.17969,1968.1,1968.0,1.36681673]
[1742601904234,9.17969,1968.1,1968.0,2.38345673]
[1742601904428,9.17969,1968.1,1968.0,1.36681673]
[1742601906634,10.10954135,1968.1,1968.0,0.00761673]
[1742601906835,11.04148734,1968.1,1968.0,0.00761673]
[1742601907231,11.12158894,1968.1,1968.0,0.00761673]
[1742601907837,11.04148734,1968.1,1968.0,0.00761673]
[1742601909143,11.12158794,1968.1,1968.0,0.00761673]
[1742601910533,13.62158794,1968.1,1968.0,0.00761673]
[1742601910729,13.62158794,1968.1,1968.0,6.73e-06]
[1742601911836,13.54148734,1968.1,1968.0,6.73e-06]
[1742601912036,13.62158006,1968.1,1968.0,6.73e-06]
[1742601913055,13.62157929,1968.1,1968.0,6.73e-06]
[1742601914244,19.58957929,1968.1,1968.0,6.73e-06]
[1742601922644,3.2078,1967.9,1967.2,0.7017]
[1742601922951,4.2248,1967.3,1967.2,0.7017]
[1742601923253,7.4478,1967.3,1967.2,0.7017]
[1742601923551,8.45771687,1967.3,1967.2,0.7017]
[1742601923848,1.01716,1967.0,1966.9,0.6777]
[1742601924042,7.44896,1967.0,1966.9,0.6777]
[1742601925849,8.37574886,1967.0,1966.9,0.6777]
[1742601926048,8.45580575,1967.0,1966.9,1.3648]
[1742601926250,9.68764886,1967.0,1966.9,1.3648]
[1742601926552,9.76770513,1967.0,1966.9,1.3648]
[1742601927451,8.84091602,1967.0,1966.9,1.3648]
[1742601928543,1.01721,1966.9,1966.8,0.00761673]
[1742601928744,2.42061,1966.9,1966.8,0.00761673]
[1742601930354,1.01721,1966.9,1966.8,0.00761673]
[1742601930949,1.01721,1966.9,1966.8,0.68751673]
[1742601931147,3.2078,1967.0,1966.9,1.01721]
[1742601931352,5.3661,1967.0,1966.9,2.40821]
[1742601931652,5.31556,1967.0,1966.9,2.40821]
[1742601931845,5.31556,1967.0,1966.9,1.391]
[1742601932758,5.31556,1967.0,1966.9,2.40821]
[1742601932955,5.31556,1967.0,1966.9,1.391]
[1742601934646,4.2984,1967.0,1966.9,2.40821]
[1742601934851,0.00761673,1967.1,1967.0,1.01716]
[1742601935355,3.23461673,1967.1,1967.0,1.01716]
[1742601935945,3.227,1967.3,1966.9,1.391]
[1742601936151,6.4348,1967.4,1967.3,1.017]
[1742601937051,6.4348,1967.4,1967.3,2.3301]
[1742601937052,7.45175,1967.4,1967.3,2.3301]
[1742601937251,6.4348,1967.4,1967.3,2.3301]
[1742601937654,7.45175,1967.4,1967.3,2.3301]
[1742601938160,7.45175,1967.4,1967.3,1.3131]
[1742601939056,7.45175,1967.4,1967.3,1.962]
[1742601942656,7.45175,1967.4,1967.3,1.3131]
[1742601942958,8.45922972,1967.4,1967.3,1.3131]
[1742601943259,11.88872371,1967.4,1967.3,1.3131]
[1742601943562,13.92252371,1967.4,1967.3,1.3131]
[1742601943953,13.92251889,1967.4,1967.3,1.3131]
[1742601945263,11.42251889,1967.4,1967.3,1.3131]
[1742601945657,10.06631889,1967.4,1967.3,1.3131]
[1742601945862,9.38871889,1967.4,1967.3,1.3131]
[1742601946060,8.37916227,1967.4,1967.3,1.3131]
[1742601946365,7.45175,1967.4,1967.3,1.3131]
[1742601946566,7.45175,1967.4,1967.3,2.0139]
[1742601948070,8.37952596,1967.4,1967.3,2.0139]
[1742601948767,8.37952596,1967.4,1967.3,1.3131]
[1742601949067,7.36257596,1967.4,1966.8,0.00761673]
[1742601949266,4.22501,1966.9,1966.8,0.69591673]
[1742601949473,4.22501,1966.9,1966.8,1.32071673]
[1742601949474,7.46601,1966.9,1966.8,1.32071673]
[1742601949667,8.39378596,1966.9,1966.8,1.32071673]
[1742601949973,9.32373124,1966.9,1966.8,1.32071673]
[1742601950171,10.65013124,1966.9,1966.8,1.32071673]
[1742601955376,6.08273124,1966.9,1966.8,1.32071673]
[1742601955581,9.32673124,1966.9,1966.8,1.32071673]
[1742601955780,8.39678596,1966.9,1966.8,1.32071673]
[1742601957183,9.69978596,1966.9,1966.8,1.32071673]
[1742601957780,8.77201,1966.9,1966.8,1.32071673]
[1742601958286,9.69995043,1966.9,1966.8,1.32071673]
[1742601961181,8.39695043,1966.9,1966.8,1.32071673]
[1742601962375,3.2078,1966.9,1966.8,2.33797673]
[1742601962579,6.4488,1966.9,1966.8,2.33797673]
[1742601966391,3.2078,1966.9,1966.8,2.33797673]
[1742601966885,4.13615231,1967.3,1967.2,1.01705]
[1742601967077,9.325576,1967.3,1967.2,3.13965]
[1742601968487,8.39515231,1967.3,1967.2,3.13965]
[1742601968692,8.39515231,1967.3,1967.2,2.1226]
[1742601969076,8.39515231,1967.3,1967.2,2.7702]
[1742601970087,8.39515231,1967.3,1967.2,3.78725]
[1742601971392,8.39515231,1967.3,1967.2,2.7702]
[1742601971890,8.39515231,1967.3,1967.2,3.78725]
[1742601972185,7.37815231,1967.3,1967.2,3.78725]
[1742601972589,8.39515231,1967.3,1967.2,3.78725]
[1742601972790,7.37815231,1967.3,1967.2,3.78725]
[1742601972992,8.39515231,1967.3,1967.2,3.78725]
[1742601974995,7.37815231,1967.3,1967.2,3.78725]
[1742601975791,7.37215231,1967.3,1967.2,3.78725]
[1742601976388,7.37243144,1967.3,1967.2,3.78725]
[1742601976592,6.4438,1967.3,1967.2,3.78725]
[1742601977092,8.38937529,1967.3,1967.2,3.78725]
[1742601977394,7.37237529,1967.3,1967.2,3.78725]
[1742601977592,6.4438,1967.3,1967.2,3.78725]
[1742601979483,7.4608,1967.3,1967.2,2.7702]
[1742601980087,6.4438,1967.3,1967.2,3.78725]
[1742601980288,7.4608,1967.3,1967.2,3.78725]
[1742601980788,8.3896223,1967.3,1967.2,3.78725]
[1742601980987,9.6739223,1967.3,1967.2,3.78725]
[1742601981583,9.6739223,1967.3,1967.2,2.7702]
[1742601982696,9.6739223,1967.3,1967.2,1.4131]
[1742601983396,8.6569223,1967.3,1967.2,2.43015]
[1742601984598,7.3726223,1967.3,1967.2,2.43015]
[1742601984798,3.2078,1967.3,1967.2,2.43015]
[1742601985999,3.232,1967.4,1967.3,1.017]
[1742601986204,3.232,1967.4,1967.3,3.0215]
[1742601987803,4.24895,1967.4,1967.3,3.0215]
[1742601988003,5.65485,1967.4,1967.3,3.0215]
[1742601988391,6.58426472,1967.4,1967.3,3.0215]
[1742601991404,6.58426472,1967.4,1967.3,2.3236]
[1742601993802,7.51653303,1967.4,1967.3,2.3236]
[1742601994010,6.49958303,1967.4,1967.3,2.3236]
[1742601994909,7.51653303,1967.4,1967.3,2.3236]
[1742601995110,7.51653303,1967.4,1967.3,1.3066]
[1742601995508,7.51653303,1967.4,1967.3,2.3236]
[1742601995697,6.49958303,1967.4,1967.3,2.3236]
[1742601995898,1.86168303,1967.4,1967.3,2.3236]
[1742601996102,0.92941472,1967.4,1967.3,2.3236]
[1742601996307,6.4338,1967.5,1967.4,1.01695]
[1742601996510,4.13874586,1967.5,1967.4,3.08785]
[1742601996702,5.07177119,1967.5,1967.4,3.08785]
[1742601996903,1.68104,1967.7,1967.6,1.01685]
[1742601996904,3.2078,1967.7,1967.6,1.01685]
[1742601997704,3.2078,1967.7,1967.6,2.38435]
[1742601997906,3.2078,1967.7,1967.6,8.25635]
[1742601998800,51.25451,1968.3,1967.6,12.9705]
[1742601998999,50.238,1968.3,1968.2,1.01654]
[1742601999204,5.1796233,1968.3,1968.2,1.01654]
[1742601999405,3.233,1968.3,1968.2,1.01654]
[1742601999605,3.233,1968.3,1968.2,2.37754]
[1742602000009,4.24949,1968.3,1968.2,2.37754]
[1742602000208,5.58009,1968.3,1968.2,2.37754]
[1742602000602,4.5636,1968.3,1968.2,2.37754]
[1742602001109,5.58009,1968.3,1968.2,2.37754]
[1742602001500,1.3306,1968.3,1968.2,2.37754]
[1742602001705,4.5941,1968.4,1968.3,1.01649]
[1742602001907,3.2078,1968.4,1968.3,2.35159]
[1742602002901,4.22423,1968.4,1968.3,1.3351]
[1742602003107,6.56830417,1968.4,1968.3,1.3351]
[1742602003315,1.01654,1968.2,1968.1,5.87961673]
[1742602003507,4.6483,1968.3,1968.1,7.21471673]
[1742602003708,12.05290367,1968.5,1968.4,1.01643]
[1742602004304,8.81690367,1968.5,1968.4,1.01643]
[1742602004505,9.83328367,1968.5,1968.4,1.3351]
[1742602004810,9.83328367,1968.5,1968.4,2.35153]
[1742602004811,10.11040367,1968.5,1968.4,2.35153]
[1742602005012,11.12678367,1968.5,1968.4,2.35153]
[1742602005599,8.81690367,1968.5,1968.4,2.35153]
[1742602006000,8.81690367,1968.5,1968.4,8.22353]
[1742602006408,8.81690367,1968.5,1968.4,10.72353]
[1742602006610,6.58270367,1968.5,1968.4,10.72353]
[1742602014019,6.58270367,1968.5,1968.4,8.22353]
[1742602014609,7.59908367,1968.5,1968.4,8.22353]
[1742602015215,6.58270367,1968.5,1968.4,8.22353]
[1742602022317,3.8806,1969.0,1968.9,1.01618]
[1742602022510,1.68893,1969.0,1968.9,1.01618]
[1742602023021,1.68893,1969.0,1968.9,2.41598]
[1742602023218,0.6728,1969.0,1968.9,2.41598]
[1742602024215,1.3363,1969.1,1969.0,1.01613]
[1742602024517,1.3363,1969.1,1969.0,2.41593]
[1742602026017,1.01579,1969.7,1969.2,2.54]
[1742602026218,1.01579,1969.7,1969.4,1.01592]
[1742602026219,1.9433,1969.5,1969.4,1.01592]
[1742602026422,1.9433,1969.5,1969.4,2.41182]
[1742602026824,2.95917,1969.5,1969.4,2.41182]
[1742602027017,2.95917,1969.5,1969.4,1.3959]
[1742602027619,1.01592,1969.4,1969.3,5.87961673]
[1742602027826,2.30362,1969.4,1969.3,6.89558673]
[1742602028323,2.30362,1969.4,1969.3,5.87961673]
[1742602028525,2.30362,1969.4,1969.3,6.89558673]
[1742602028724,2.30362,1969.4,1969.3,8.29148673]
[1742602029225,1.2877,1969.4,1969.3,8.29148673]
[1742602029426,2.30362,1969.4,1969.3,8.29148673]
[1742602030326,2.30362,1969.4,1969.3,7.27551673]
[1742602030629,2.30362,1969.4,1969.3,8.29148673]
[1742602036736,2.30362,1969.4,1969.3,6.89558673]
[1742602041843,2.30362,1969.4,1969.3,5.87961673]
[1742602042234,2.30362,1969.4,1969.3,6.89558673]
[1742602042429,2.30362,1969.4,1969.3,5.87961673]
[1742602042938,2.30362,1969.4,1969.3,6.89558673]
[1742602044353,1.2877,1969.4,1969.3,6.89558673]
[1742602044539,2.30362,1969.4,1969.3,6.89558673]
[1742602045045,2.30362,1969.4,1969.3,8.19798673]
[1742602046442,1.2877,1969.4,1969.3,8.19798673]
[1742602046746,1.01592,1969.4,1969.3,8.19793673]
[1742602046940,2.34582,1969.4,1969.3,8.19793673]
[1742602047946,1.3299,1969.4,1969.3,8.19793673]
[1742602048148,2.34582,1969.4,1969.3,8.19793673]
[1742602048339,1.3299,1969.4,1969.3,8.19793673]
[1742602048932,2.34582,1969.4,1969.3,8.19793673]
[1742602049139,1.3299,1969.4,1969.3,8.19793673]
[1742602052949,2.60252062,1969.5,1969.4,1.01592]
[1742602053149,3.96962062,1969.5,1969.4,2.36752]
[1742602053345,2.95375062,1969.5,1969.4,2.36752]
[1742602053547,3.96962062,1969.5,1969.4,2.36752]
[1742602053741,4.90389556,1969.5,1969.4,2.36752]
[1742602058945,0.57483556,1969.5,1969.4,11.44732]
[1742602059150,3.02719,1970.1,1969.8,2.5392]
[1742602059356,1.3247,1970.0,1969.9,6.88762]
[1742602060349,5.54811,1970.0,1969.9,5.872]
[1742602060951,5.54811,1970.0,1969.9,6.88766]
[1742602064349,2.34031,1970.0,1969.9,6.88766]
[1742602065247,2.34031,1970.0,1969.9,1.01566]
[1742602069158,3.24970608,1970.0,1969.9,1.01566]
[1742602073858,2.23409608,1970.0,1969.9,1.01566]
[1742602074250,3.24970608,1970.0,1969.9,1.01566]
[1742602074859,1.01566,1969.9,1969.8,2.35637]
[1742602075063,0.90939608,1970.0,1969.9,1.01566]
[1742602075357,0.90939608,1970.0,1969.9,3.00906]
[1742602075760,1.92500608,1970.0,1969.9,3.00906]
[1742602076063,0.90939608,1970.0,1969.9,3.00906]
[1742602076653,2.31299608,1970.0,1969.9,3.00906]
[1742602077260,0.90939608,1970.0,1969.9,3.00906]
[1742602079154,6.18839,1970.1,1970.0,1.01561]
[1742602079355,7.09800654,1970.1,1970.0,2.29691]
[1742602079857,6.08241654,1970.1,1969.7,5.872]
[1742602080057,6.41592654,1970.0,1969.9,1.2813]
[1742602087667,3.20812654,1970.0,1969.9,1.2813]
[1742602087867,6.41592654,1970.0,1969.9,1.2813]
[1742602099469,1.01587,1969.5,1969.4,5.872]
[1742602099665,4.22367,1969.5,1969.4,1.3259]